Cogmind - Beta 13 X2 @@@ ROGUE MODE // 2023.12.24 @ 13:44:04 Player: f3-rnm Result: Destroyed by L-31 Rogue with Katana Performance ------------- Evolutions (1) 500 Regions Visited (3) 600 Robots Destroyed (54) 270 Value Destroyed (1188) 1188 Prototype IDs (3) 60 Alien Tech Used (0) 0 Bonus (8) 8 TOTAL SCORE: 2626 Bonus ------- High Alert Combat Kills 8 Cogmind --------- Core Integrity 0/400 Matter 278/300 Energy 280/280 System Corruption 3% Temperature Cool (0) Movement Treading (240) Ox1 Location -9/Mines Parts ------- > --- POWER (1) -------- Heavy Ion Engine > --- PROPULSION (3) --- Light Treads Light Treads Light Treads > --- UTILITY (3) ------ Huge Storage Unit Transport Network Coupler > --- WEAPON (2) ------- Heavy Assault Rifle Improved Assault Rifle > --- INVENTORY (25) --- Improved Ion Engine Improved Ion Engine Improved Ion Engine Improved Ion Engine Light Treads Light Treads Light Treads Light Treads Armored Wheel Improved Flight Unit Improved Flight Unit Improved Flight Unit Improved Flight Unit Improved Flight Unit Cooling System Medium Storage Unit Medium Matter Pod (100) Structural Scanner Improved Utility Shielding Improved Utility Shielding Light Armor Plating Autogun EMP Blaster Plasma Cutter Flail Peak State ------------ > --- POWER ------------ Heavy Ion Engine > --- PROPULSION ------- Light Treads Light Treads Light Treads > --- UTILITY ---------- Huge Storage Unit Transport Network Coupler Light Armor Plating > --- WEAPON ----------- Improved Assault Rifle Improved Assault Rifle > --- INVENTORY -------- Improved Ion Engine Improved Ion Engine Improved Ion Engine Improved Ion Engine Light Treads Light Treads Armored Wheel Improved Flight Unit Improved Flight Unit Improved Flight Unit Improved Flight Unit Improved Flight Unit Heat Sink Medium Storage Unit Medium Matter Pod Structural Scanner Improved Utility Shielding Improved Utility Shielding Light Armor Plating Light Armor Plating Autogun Plasma Cutter Flail [Rating: 19] Favorites ----------- Power Heavy Ion Engine Engine Heavy Ion Engine Propulsion Light Treads Treads Light Treads Flight Unit Improved Flight Unit Utility Transport Network Coupler Storage Huge Storage Unit Processor Transport Network Coupler Protection Light Armor Plating Weapon Improved Assault Rifle Energy Gun Medium Laser Ballistic Gun Improved Assault Rifle Build | -11 -10 -9 -9 ------- Run | Yrd Mat Mat Min Slots Evolved 2 | . . 2 . Power . | . . . . Propulsion 1 | . . 1 . Utility 1 | . . 1 . Weapon . | . . . . Parts Attached 40 | 6 3 30 1 Power 4 | 1 . 3 . Engine 4 | 1 . 3 . Core . | . . . . Reactor . | . . . . Propulsion 17 | 2 . 15 . Treads 16 | 2 . 14 . Leg . | . . . . Wheel . | . . . . Hover . | . . . . Flight 1 | . . 1 . Utility 9 | 1 2 6 . Device . | . . . . Storage 3 | 1 1 1 . Processor 1 | . 1 . . Hackware . | . . . . Protection 5 | . . 5 . Artifact . | . . . . Weapon 10 | 2 1 6 1 Energy Gun 1 | 1 . . . Energy Cannon . | . . . . Ballistic Gun 9 | 1 1 6 1 Ballistic Cannon . | . . . . Launcher . | . . . . Special Weapon . | . . . . Impact Weapon . | . . . . Slashing Weapon . | . . . . Piercing Weapon . | . . . . Special Melee Weapon . | . . . . Unidentified Prototypes 3 | . . 3 . Parts Lost 8 | . 1 7 . Power 1 | . . 1 . Propulsion 3 | . . 3 . Utility 2 | . . 2 . Weapon 2 | . 1 1 . Highest Loss Streak 3 | . 1 3 . To Critical Strikes . | . . . . Average Slot Usage (%) 98 | . 97 98 99 Engine 11 | . 14 11 11 Treads 31 | . 28 31 33 Storage 11 | . 14 11 11 Processor 11 | . 12 11 11 Protection 8 | . . 10 10 Energy Gun 1 | . 10 . . Ballistic Gun 21 | . 16 21 22 Naked Turns . | . . . . Heaviest Build 97 | 14 19 97 97 Greatest Support 60 | 40 40 60 60 Greatest Overweight (x) 2 | . . 2 1 Average Overweight (x) . | . . . 1 Largest Inventory Capacity 25 | 8 10 25 25 Average Capacity 19 | 6 9 21 25 Most Carried 25 | 4 10 25 25 Average Carried 17 | 2 7 19 24 Final Capacity 25 | 8 10 25 25 Final Carried 25 | 3 10 25 25 Class Distribution -------------------- 75% | Scavenger-Mutant 24% | Mutant Dominant Class ---------------- Mutant | -10/Materials Scavenger-Mutant | -9/Materials Scavenger-Mutant | -9/Mines Resources | -11 -10 -9 -9 ----------- Run | Yrd Mat Mat Min Matter Collected 1334 | 120 271 938 5 Remotely . | . . . . Salvage Created 2099 | . 257 1842 . Parts 141 | . 18 123 . Haulers Intercepted 7 | . 1 6 . Recyclers Shooed 3 | . . 3 . Parts Field Recycled . | . . . . Retrieved Matter . | . . . . Parts Self-Destructed . | . . . . Prevented . | . . . . Kills | -11 -10 -9 -9 ------- Run | Yrd Mat Mat Min Combat Hostiles Destroyed 37 | . 8 29 . Guns 37 | . 8 29 . Classes Destroyed 10 | . 5 5 . Worker 2 | . 1 1 . Builder 1 | . . 1 . Hauler 7 | . 1 6 . Recycler 3 | . . 3 . Watcher 4 | . 1 3 . Swarmer 13 | . 6 7 . Grunt 12 | . 2 10 . Brawler 2 | . . 2 . Duelist 1 | . . 1 . Sentry 9 | . . 9 . Best Kill Streak 7 | . 7 7 . Combat Bots Only 6 | . 6 4 . Max Kills in Single Turn 2 | . 1 2 . Gunslinging 1 | . . 1 . Exploded . | . . . . Melee . | . . . . Uniques/NPCs Destroyed . | . . . . Combat | -11 -10 -9 -9 -------- Run | Yrd Mat Mat Min Hostile Shots Fired 286 | . 42 241 3 Missed 84 | . 6 78 . Damage Taken 2560 | . 380 2076 104 Core 492 | . 63 360 69 Absorbed by Shields . | . . . . Core Remaining (%) 87 | 100 74 . . Volleys Fired 163 | . 32 129 2 Largest 2 | . 2 2 2 Hottest 70 | . 70 46 46 Shots Fired 324 | . 60 260 4 Gun 324 | . 60 260 4 Cannon . | . . . . Launcher . | . . . . Special . | . . . . Kinetic 296 | . 32 260 4 Thermal 28 | . 28 . . Explosive . | . . . . Electromagnetic . | . . . . Robot Hit Streak 18 | . 4 18 3 Robot Miss Streak 5 | . 5 4 1 Penetration Max . | . . . . Secondary Targets 9 | . 2 7 . Max Gunslinging Chain 1 | . 1 1 . Shots Hit Robots 216 | . 32 181 3 Core Hits 92 | . 15 76 1 Critical Kills 1 | . . 1 . Critical Parts Destroyed 3 | . 1 2 . Critical Strikes 6 | . 3 3 . Burn 2 | . 2 . . Destroy 4 | . 1 3 . Melee Attacks . | . . . . Impact . | . . . . Slashing . | . . . . Piercing . | . . . . Sneak Attacks . | . . . . Combat Hostiles . | . . . . Follow-up Attacks . | . . . . Damage Inflicted 2901 | . 452 2404 45 Guns 2901 | . 452 2404 45 Cannons . | . . . . Explosions . | . . . . Melee . | . . . . Ramming . | . . . . Kinetic 2700 | . 251 2404 45 Thermal 201 | . 201 . . Explosive . | . . . . Electromagnetic . | . . . . Impact . | . . . . Slashing . | . . . . Piercing . | . . . . Highest Corruption 3 | . . 3 3 Average Corruption 2 | . . 2 3 Corruption Purged . | . . . . Corruption Blocked . | . . . . Effects 44 | . . 41 3 Message Errors 11 | . . 10 1 Matter Fused 11 | . . 11 . Heat Flow Errors 2 | . . 2 . Energy Discharges 6 | . . 6 . Parts Rejected 1 | . . 1 . Data Loss (minor) 5 | . . 4 1 Data Loss (major) 3 | . . 2 1 Misfires 3 | . . 3 . Alerts 2 | . . 2 . Overload Shots . | . . . . Overflow Damage . | . . . . Projectiles . | . . . . Explosions . | . . . . Melee . | . . . . Knockbacks . | . . . . Impact . | . . . . Kinetic . | . . . . Secondary . | . . . . Self-Inflicted Damage . | . . . . Shots . | . . . . Rammed . | . . . . Targets Rammed . | . . . . Kicked . | . . . . Crushed . | . . . . Highest Temperature 249 | . 201 249 . Average Temperature 37 | . 68 20 . Received Heat Transfer 810 | . 108 702 . Siege Activations . | . . . . Robots Corrupted . | . . . . Combat Hostiles . | . . . . Parts Fried . | . . . . Impact Corruptions . | . . . . Robots Melted . | . . . . Combat Hostiles . | . . . . Parts Melted 1 | . 1 . . Heat Transferred 740 | . 740 . . Parts Sabotaged . | . . . . Parts Stolen . | . . . . Parts Stripped . | . . . . Power Chain Reactions . | . . . . Missiles Intercepted . | . . . . Alert | -11 -10 -9 -9 ------- Run | Yrd Mat Mat Min Peak Influence 407 | . 259 407 139 Initial 139 | . . 24 139 Average 190 | . 62 225 139 Maximum Alert Level 2 | . 1 2 . Low Security (%) 58 | 100 90 48 100 Level 1 41 | . 9 51 . Level 2 . | . . . . Level 3 . | . . . . Level 4 . | . . . . Level 5 . | . . . . High Security . | . . . . Max Security . | . . . . Squads Dispatched 2 | . . 2 . Investigation . | . . . . Extermination . | . . . . Reinforcement 2 | . . 2 . Assault . | . . . . Garrison . | . . . . Intercept . | . . . . Searches Triggered . | . . . . Construction Impeded . | . . . . Haulers Reinforced . | . . . . Active Scanning Responses . | . . . . Cargo Convoy Interrupts . | . . . . Stealth | -11 -10 -9 -9 --------- Run | Yrd Mat Mat Min Distress Signals 6 | . . 6 . Communications Jammed . | . . . . Distress Signals . | . . . . Times Spotted 62 | . 11 50 1 Peak Tracking Total 5 | . 3 5 2 Tactical Retreats 2 | . 1 1 . Traps | -11 -10 -9 -9 ------- Run | Yrd Mat Mat Min Traps Triggered 2 | . . 2 . Indirectly . | . . . . Trap Hack Attempts . | . . . . Triggered . | . . . . Disarmed . | . . . . Reprogrammed . | . . . . Reused . | . . . . Traps Extracted . | . . . . Installed . | . . . . Triggered . | . . . . Machines | -11 -10 -9 -9 ---------- Run | Yrd Mat Mat Min Machines Disabled 1 | . . 1 . Max in Single Turn 1 | . . 1 . Machines Repaired . | . . . . Machines Dismantled . | . . . . Machines Sabotaged . | . . . . Overloaded Fab Kills . | . . . . Hacking | -11 -10 -9 -9 --------- Run | Yrd Mat Mat Min Machines Accessed 4 | . . 4 . Terminals 4 | . . 4 . Fabricators . | . . . . Repair Stations . | . . . . Recycling Units . | . . . . Scanalyzers . | . . . . Garrison Access . | . . . . Total Hacks 11 | . . 11 . Successful 1 | . . 1 . Failed 10 | . . 10 . Catastrophic 5 | . . 5 . Database Lockouts . | . . . . Manual 11 | . . 11 . Terminals 11 | . . 11 . Fabricators . | . . . . Repair Stations . | . . . . Recycling Units . | . . . . Scanalyzers . | . . . . Garrison Access . | . . . . Terminal Hacks 1 | . . 1 . Robot Analysis 1 | . . 1 . Fabricator Hacks . | . . . . Repair Station Hacks . | . . . . Recycling Unit Hacks . | . . . . Scanalyzer . | . . . . Garrison Access Hacks . | . . . . Unauthorized Hacks . | . . . . Terminals . | . . . . Fabricators . | . . . . Repair Stations . | . . . . Recycling Units . | . . . . Scanalyzers . | . . . . Garrison Access . | . . . . Data Cores Recovered . | . . . . Used . | . . . . Hacking Detections 4 | . . 4 . Full Trace Events . | . . . . Feedback Events . | . . . . Feedback Blocked . | . . . . Robot Schematics Acquired . | . . . . Robots Built . | . . . . Authchips . | . . . . Time . | . . . . Total Robot Build Rating . | . . . . Part Schematics Acquired . | . . . . Parts Built . | . . . . Authchips . | . . . . Time . | . . . . Total Part Build Rating . | . . . . Parts Repaired . | . . . . Time . | . . . . Parts Recycled . | . . . . Recycled Matter . | . . . . Retrieved Matter . | . . . . Retrieved Components . | . . . . Parts Scanalyzed . | . . . . Part Schematics Acquired . | . . . . Parts Damaged . | . . . . Bothacking | -11 -10 -9 -9 ------------ Run | Yrd Mat Mat Min Used RIF Installer . | . . . . Robots Hacked . | . . . . Non-combat . | . . . . Combat . | . . . . Robot Hacks Applied . | . . . . Relay Couplers Released . | . . . . Fabnet Peak Effective % . | . . . . Robots Rewired . | . . . . Allies Hacked . | . . . . Hacks Repelled . | . . . . Allies | -11 -10 -9 -9 -------- Run | Yrd Mat Mat Min Total Allies . | . . . . Largest Group . | . . . . Highest-Rated Group . | . . . . Highest-Rated Ally . | . . . . Total Orders . | . . . . Ally Attacks . | . . . . Total Damage . | . . . . Kills . | . . . . Allies Corrupted . | . . . . Allies Melted . | . . . . Intel | -11 -10 -9 -9 ------- Run | Yrd Mat Mat Min Robot Analysis Total 1 | . . 1 . Derelict Logs Recovered . | . . . . Drone Launches . | . . . . Drone Recoveries . | . . . . Exploration | -11 -10 -9 -9 ------------- Run | Yrd Mat Mat Min Turns Passed 3073 | 75 458 2380 160 Spaces Moved 1160 | 47 220 830 63 Core 13 | 13 . . . Treads 1147 | 34 220 830 63 Legs . | . . . . Wheels . | . . . . Hover . | . . . . Flight . | . . . . Fastest Speed 50 | 50 160 160 240 Average Speed 212 | 129 160 229 240 Slowest Speed 320 | 160 160 320 240 Overloaded Moves . | . . . . Propulsion Burnouts . | . . . . Robots Hopped . | . . . . Cave-ins Triggered . | . . . . Exploration Rate (%) 34 | 4 35 77 23 Regions Visited 3 Branch Regions 1 Pre-discovered Areas 1 | . . . 1 Known Exits Taken . | . . . . Unknown Exits Taken 3 | 1 1 1 . Scrap Searched 1 | . . . 1 Spaces Dug . | . . . . Terrain Destroyed . | . . . . Melee . | . . . . Projectile . | . . . . AOE . | . . . . Terrain Rammed . | . . . . Walls Destroyed . | . . . . Machines Disabled . | . . . . Actions | -11 -10 -9 -9 --------- Run | Yrd Mat Mat Min Total 1477 | 61 266 1082 68 Wait 36 | . 1 35 . Move 1157 | 46 219 829 63 Hop . | . . . . Pick Up 57 | 9 10 37 1 Fast Attach 1 | . . 1 . Attach 22 | 6 2 14 . Detach 2 | . . 2 . Swap 17 | . 1 15 1 Drop 22 | . 1 20 1 Fire 163 | . 32 129 2 Melee . | . . . . Ram . | . . . . Kick . | . . . . Crush . | . . . . Escape Stasis . | . . . . Rewire . | . . . . Trap . | . . . . Miscellaneous . | . . . . Route ------- -11/Scrapyard -10/Materials -9/Materials (discovered 4 exits: [*Mat x2] / [*Min x2]) -9/Mines History --------- Turn | Location | Event 6 | -11/Scrapyard | Discovered new exit (range 13) 76 | -11/Scrapyard | Entered Materials 306 | -10/Materials | Build established: Mutant 368 | -10/Materials | Discovered new exit (range 15) 534 | -10/Materials | Entered another Materials area 534 | -9/Materials | Evolved 2 slots: Propulsion x1, Utility x1 972 | -9/Materials | Core integrity fell below 50% 991 | -9/Materials | Lost 3 parts (2n1w) 1074 | -9/Materials | Build established: Scavenger-Mutant 1397 | -9/Materials | Discovered new exit (range 8) 1817 | -9/Materials | Discovered new exit (range 6) 2439 | -9/Materials | Core integrity fell below 20% 2833 | -9/Materials | Discovered new exit (range 15) 2874 | -9/Materials | Discovered new exit (range 9) 2914 | -9/Materials | Entered Mines 2915 | -9/Mines | Learned location of Storage (-8) 2918 | -9/Mines | Met a Derelict bent on vengeance 3074 | -9/Mines | Destroyed by L-31 Rogue with Katana Last Messages --------------- 02915_ A derelict emerges from the shadows: "Are any of them following you? I'm here trying to lose some heat after our second raid on Storage failed. Whatever you do stay away from that place, they've tightened security following our previous successful raids." World map updated: -8/Storage. 02917_ AZ-VK1(g): "We scattered so the Unaware couldn't effectively use their advantage in numbers, and I suggest you do the same." 02917_ AZ-VK1(g) slips back into the shadows. 02934_ UA UGDP2OPPL>31E3HPPL SRS1DV8XX, 02973_ T-07 Excavator is excavating. 03032_ Searching scrap... 03032_ Found EMP Blaster. 03032_ Found Field Recycling Unit. 03032_ Found 42 Matter. 03033_ Acquired 5 matter. 03036_ System corrupted: Component data lost. 03043_ Dropped Imp. Assault Rifle. 03044_ Acquired EMP Blaster. 03066_ System corrupted: Substantial component data lost. 03069_ Lgt. Armor Plating severed. Map ----- +----------------------------------------------------+ | ?????????????????????????????????????????????????? | | ?????????????????????????????????????????????????? | | ?????????????????????????????????????????????????? | | ?????????????????????????????????????????????????? | | ?????????????????????????????????????????????????? | | ?????????????????????????????????????????????????? | | ?????????????????????????????????????????????????? | | ?????????????????????????????????????????????????? | | ?????????????????????????????????????????????????? | | ?????????????????????????????????????????????????? | | ????????????????????? ?????????????????????????? | | ????????????????????# ??????? ?????????????????? | | ????????????????????# ??????# ?????????????????? | | ????????????????????# #???## ??????????????????? | | ????????????????????# ### ??????????????????? | | ????????????????????# ???????????????????? | | ????????????????????# ???????????????????? | | ???????????????????## ????????????????????? | | ??????????????????## ????????????????????? | | ?????????????????## ?????????????????????? | | ?????????????????? $ ?????????????????????? | | ???????????????????? ??????????????????????? | | ?????????????????????# ??????????????????????? | | ??????????????????????? g #??????????????????????? | | ????????????????????????#l#??????????????????????? | | ????????????????????????#@#??????????????????????? | | ???????????????????????# #??????????????????????? | | ????????????????????????# #??????????????????????? | | ????????????????????????# #??????????????????????? | | ????????????????????????# #??????????????????????? | | #???####????????????????# #??????????????????????? | | ##### ##?####??????????# #??????????????????????? | | ### ############ #??????????????????????? | | ## % #??????????????????????? | | ! [ #??????????????????????? | | ## ####??????????????????????? | | ##### #?????????????????????????? | | #???# # ## #?????????????????????????? | | ##???# ## ##### #????????????????????????? | | #???# ####???# #????????????????????????? | | #???# #??????# ##????????????????????????? | | #???# #??????## ##?????????????????????????? | | ##??? #???????####??????????????????????????? | | ##???## ####?????????????????????????????????????? | | ??????##?????????????????????????????????????????? | | ?????????????????????????????????????????????????? | | ?????????????????????????????????????????????????? | | ?????????????????????????????????????????????????? | | | | | +----------------------------------------------------+ Best States ------------- Heat Dissipation 28 Energy Generation 14 Energy Capacity 280 Matter Stores 300 Matter Capacity 300 Sight Range 16 Terrain Scan Density 10 Armor Coverage 150 Evasion (%) 50 Recoil Reduction 3 Item Schematics ----------------- None Robot Schematics ------------------ None Fabricated ------------ Nothing Alien Tech Used ----------------- None Achievements -------------- None Challenges ------------ None Game ------ Seed SigixBackupBeam Manual? 0 Play Time 00:16:08 Cumulative 132.8 hours Start 2023.12.24 @ 12:33:54 End 2023.12.24 @ 13:44:04 Sessions 1 Manual Loads 0 Difficulty Rogue Special Mode None Game No. 149 Rogue 113 Adventurer 36 Explorer 0 Win Type - Total 8 Types 2/0/6/0/0/0/0/0/0 Lore% 54 Gallery% 77 Achievement% 63 Wizard Run 0 Options --------- ASCII 0 Keyboard 0 Movement Mouse Keybinds 0 Fullscreen 1 Font 18/SmallcapsGlow Map View 76x50 Zoom Use 0% Tactical HUD 1 Map Filters NONE Filters NONE Steam 1 RUN: 14c7d20d-4cb7-4474-a939-ecc5d6a4d144